bitfinex-derivatives/quotes_SOLF0:USTF0_20250111
["timestamp","ask_amount","ask_price","bid_price","bid_amount"]
[1736597773537,206.08415862,187.47,187.29,11.08415862]
[1736597773731,11.08415862,187.42,187.29,11.08415862]
[1736597773933,1.5624,187.41,187.32,2.6704]
[1736597774133,4.7131,187.41,187.32,2.6704]
[1736597774536,4.7131,187.41,187.33,2.6701]
[1736597774736,4.7131,187.41,187.29,11.08415862]
[1736597775037,2.6696,187.38,187.29,11.08415862]
[1736597775234,2.6696,187.38,187.33,2.6702]
[1736597775634,2.6696,187.38,187.29,11.08415862]
[1736597775834,2.6696,187.38,187.34,2.6701]
[1736597776036,2.6696,187.38,187.29,11.08415862]
[1736597776438,2.6696,187.38,187.33,2.6701]
[1736597778541,2.6694,187.39,187.32,2.6703]
[1736597778742,2.6694,187.39,187.29,11.08415862]
[1736597778945,2.6694,187.39,187.32,11.08415862]
[1736597779745,2.6694,187.39,187.34,2.67]
[1736597779939,2.669,187.42,187.32,11.08415862]
[1736597780144,11.08415862,187.45,187.32,11.08415862]
[1736597780542,2.6691,187.42,187.33,1.6247]
[1736597780738,2.6691,187.42,187.34,1.6717]
[1736597781137,2.6688,187.43,187.38,2.6694]
[1736597781636,4.8492,187.46,187.39,2.6693]
[1736597781940,2.6685,187.45,187.35,11.08415862]
[1736597782739,2.6685,187.45,187.4,2.6691]
[1736597782940,3.3287,187.46,187.35,11.08415862]
[1736597783446,2.6692,187.41,187.36,2.6698]
[1736597784247,2.6695,187.39,187.34,1.6717]
[1736597784749,2.6698,187.36,187.32,13.75455862]
[1736597785046,11.08415862,187.42,187.32,11.08415862]
[1736597785437,2.6695,187.39,187.34,2.67]
[1736597785641,11.08415862,187.42,187.34,2.67]
[1736597785945,2.6695,187.39,187.34,2.67]
[1736597787449,2.6695,187.39,187.35,2.6699]
[1736597788548,1.5679,187.44,187.36,2.6698]
[1736597788549,2.6693,187.4,187.36,2.6698]
[1736597788739,1.5679,187.44,187.32,11.08415862]
[1736597789145,1.5679,187.44,187.34,2.67]
[1736597789352,7.09483676,187.41,187.34,2.67]
[1736597790150,2.6694,187.39,187.34,2.67]
[1736597790647,2.6694,187.39,187.35,2.6699]
[1736597791348,2.6696,187.38,187.35,2.6699]
[1736597791552,7.09483676,187.41,187.34,2.6701]
[1736597791750,7.09483676,187.39,187.25,4.8409]
[1736597791946,7.09483676,187.39,187.31,7.09483676]
[1736597792251,2.6699,187.36,187.32,2.6703]
[1736597792949,1.5679,187.44,187.31,7.09483676]
[1736597793149,2.6693,187.4,187.36,2.6697]
[1736597793353,7.09483676,187.41,187.33,7.09483676]
[1736597793747,2.6696,187.38,187.34,2.67]
[1736597796555,7.09483676,187.41,187.35,7.09483676]
[1736597796756,1.5679,187.44,187.37,7.09483676]
[1736597797350,2.6691,187.42,187.38,2.6695]
[1736597798157,1.5679,187.44,187.38,2.6695]
[1736597798357,2.6691,187.41,187.38,2.6695]
[1736597799056,234.962,187.77,187.35,11.08060562]
[1736597799256,11.08060562,187.48,187.35,11.08060562]
[1736597799958,2.669,187.42,187.33,11.08060562]
[1736597800254,1.5663,187.47,187.33,11.08060562]
[1736597800454,11.08060562,187.45,187.33,11.08060562]
[1736597800654,1.5238,187.44,187.33,11.08060562]
[1736597801046,2.6696,187.38,187.35,2.6699]
[1736597802257,1.5238,187.44,187.33,11.08060562]
[1736597802258,2.6694,187.39,187.36,2.6698]
[1736597804063,2.669,187.42,187.39,2.6693]
[1736597804353,1.6621,187.46,187.33,12.71850562]
[1736597804547,1.6621,187.46,187.34,1.6267]
[1736597804753,2.6688,187.43,187.34,1.6267]
[1736597804959,1.6621,187.46,187.34,1.6267]
[1736597805455,2.669,187.42,187.39,2.6693]
[1736597811964,2.669,187.42,187.38,2.6695]
[1736597814964,2.669,187.42,187.39,2.6694]
[1736597815860,2.6686,187.45,187.41,2.6691]
[1736597816458,2.6686,187.45,187.36,11.08060562]
[1736597816757,2.6686,187.45,187.42,2.6689]
[1736597816952,1.6621,187.46,187.36,11.08060562]
[1736597816953,2.6688,187.43,187.36,11.08060562]
[1736597817157,1.6621,187.46,187.36,11.08060562]
[1736597817359,1.6621,187.46,187.4,2.6691]
[1736597817860,2.6688,187.44,187.4,2.6692]
[1736597819760,2.6688,187.44,187.41,2.6691]
[1736597820065,2.6686,187.45,187.41,2.6691]
[1736597820460,1.6621,187.46,187.43,2.6688]
[1736597821667,4.3305,187.46,187.43,2.6688]
[1736597826375,7.09088946,187.44,187.39,2.6693]
[1736597827072,2.669,187.42,187.39,2.6693]
[1736597828466,2.669,187.42,187.35,7.09088946]
[1736597828668,2.6693,187.4,187.33,8.72878946]
[1736597829368,2.6693,187.4,187.35,2.6699]
[1736597829769,7.09088946,187.4,187.29,1.558]
[1736597829967,7.09088946,187.4,187.32,7.09088946]
[1736597830373,2.6697,187.38,187.32,7.09088946]
[1736597831072,2.6697,187.38,187.34,2.67]
[1736597832573,7.09088946,187.42,187.36,7.09088946]
[1736597832775,7.09088946,187.44,187.36,7.09088946]
[1736597833678,7.09088946,187.44,187.38,7.09088946]
[1736597833973,7.09088946,187.46,187.38,7.09088946]
[1736597834175,9.75938946,187.46,187.41,2.669]
[1736597835474,7.09088946,187.46,187.41,2.669]
[1736597836376,2.6686,187.45,187.41,2.669]
[1736597837874,7.09088946,187.46,187.41,2.669]
[1736597838077,2.6687,187.44,187.41,2.669]
[1736597840177,2.6687,187.44,187.4,2.6692]
[1736597840479,7.09088946,187.44,187.37,7.09088946]
[1736597840975,2.6691,187.41,187.38,2.6695]
[1736597841284,7.09088946,187.44,187.38,2.6695]
[1736597841468,2.669,187.42,187.38,2.6695]
[1736597843281,2.669,187.42,187.39,2.6694]
[1736597843479,7.09088946,187.44,187.39,2.6694]
[1736597843678,2.6688,187.43,187.39,2.6694]
[1736597843975,3.2402,187.47,187.41,2.669]
[1736597844176,10.33108946,187.47,187.41,2.669]
[1736597844381,10.33108946,187.47,187.39,7.09088946]
[1736597844580,7.09088946,187.45,187.4,2.6692]
[1736597844776,7.09088946,187.45,187.37,7.09088946]
[1736597845177,2.6691,187.42,187.38,2.6694]
[1736597845475,7.09088946,187.45,187.37,7.09088946]
[1736597846272,2.6689,187.43,187.39,2.6693]
[1736597849179,3.2402,187.47,187.4,2.6692]
[1736597849383,2.6686,187.45,187.39,7.09088946]
[1736597849782,2.6686,187.45,187.4,2.6691]
[1736597849976,2.6686,187.45,187.39,7.09088946]
[1736597851086,2.6686,187.45,187.41,2.669]
[1736597852488,2.6686,187.45,187.41,9.75988946]
[1736597857393,1.6626,187.47,187.41,7.09088946]
[1736597857596,2.6684,187.46,187.42,2.6688]
[1736597858192,2.6682,187.48,187.44,2.6686]
[1736597858390,2.6682,187.48,187.43,7.09088946]
[1736597859592,2.6679,187.5,187.47,2.6682]
[1736597860197,2.6682,187.48,187.45,2.6684]
[1736597860394,2.6682,187.48,187.42,7.09088946]
[1736597861092,7.09088946,187.48,187.41,7.09088946]
[1736597861294,7.09088946,187.48,187.36,32.48924804]
[1736597861499,2.6686,187.45,187.4,9.75998946]
[1736597863999,1.5743,187.52,187.4,7.09088946]
[1736597864200,7.09088946,187.49,187.4,7.09088946]
[1736597864993,7.09088946,187.49,187.36,3.2487]
[1736597865197,2.6683,187.47,187.43,2.6687]
[1736597865900,2.6681,187.48,187.41,7.09088946]
[1736597866094,7.09088946,187.49,187.41,7.09088946]
[1736597866293,7.09088946,187.49,187.43,7.09088946]
[1736597867301,9.75898946,187.49,187.45,2.6685]
[1736597867498,2.6681,187.49,187.45,2.6685]
[1736597867695,1.5886,187.55,187.43,7.09088946]
[1736597867900,3.2243,187.6,187.51,7.09088946]
[1736597868100,7.09088946,187.58,187.51,7.09088946]
[1736597868294,2.6673,187.54,187.5,2.6677]
[1736597868499,2.6673,187.54,187.49,7.09088946]
[1736597868500,7.09088946,187.58,187.37,5.3391]
[1736597868696,10.88651898,187.6,187.39,21.93041103]
[1736597868697,7.09088946,187.54,187.39,21.93041103]
[1736597868895,7.09088946,187.54,187.46,7.09088946]
[1736597869095,1.5906,187.53,187.46,7.09088946]
[1736597870002,1.5906,187.53,187.48,7.09088946]
[1736597871501,2.6676,187.52,187.48,9.75888946]
[1736597871896,1.5906,187.53,187.46,7.09088946]
[1736597872105,1.5906,187.53,187.46,9.75928946]
[1736597873004,6.05561898,187.62,187.48,7.09088946]
[1736597873202,7.09088946,187.58,187.51,2.6676]
[1736597873503,7.09088946,187.53,187.4,1.5684]
[1736597873703,7.09088946,187.49,187.45,2.6684]
[1736597873994,7.09088946,187.49,187.4,1.5684]
[1736597874199,2.6681,187.48,187.42,7.09088946]
[1736597874401,7.09088946,187.5,187.42,7.09088946]
[1736597874794,2.668,187.49,187.42,7.09088946]
[1736597875199,2.668,187.49,187.45,2.6685]
[1736597875402,7.09088946,187.5,187.42,7.09088946]
[1736597875799,7.09088946,187.48,187.4,8.65928946]
[1736597876000,7.09088946,187.48,187.43,2.6688]
[1736597876001,2.6683,187.47,187.43,2.6688]
[1736597876199,2.6683,187.47,187.4,8.65928946]
[1736597876792,2.6683,187.47,187.43,2.6688]
[1736597876999,7.09088946,187.48,187.4,1.5684]
[1736597877303,2.6686,187.45,187.36,3.2487]
[1736597877600,2.6686,187.45,187.39,7.09088946]
[1736597878103,2.6686,187.45,187.41,2.6691]
[1736597878306,7.09088946,187.48,187.41,2.6691]
[1736597878500,2.6684,187.46,187.41,2.6691]
[1736597879000,9.75908946,187.48,187.43,2.6687]
[1736597880504,9.75908946,187.48,187.44,2.6687]
[1736597881300,2.6683,187.47,187.43,2.6688]
[1736597881496,7.09088946,187.48,187.39,7.09088946]
[1736597882107,7.09088946,187.46,187.38,7.09088946]
[1736597882496,2.6688,187.43,187.39,2.6693]
[1736597882804,7.09088946,187.46,187.38,7.09088946]
[1736597883905,2.6687,187.44,187.4,2.6691]
[1736597884105,7.09088946,187.46,187.36,3.2487]
[1736597884307,7.09088946,187.46,187.38,7.09088946]
[1736597884802,7.09088946,187.44,187.35,1.6402]
[1736597884997,7.09088946,187.44,187.36,7.09088946]
[1736597885202,7.09088946,187.42,187.36,7.09088946]
[1736597886503,9.75998946,187.42,187.38,2.6695]
[1736597886709,7.09088946,187.42,187.31,3.1822]
[1736597886906,7.09088946,187.4,187.33,7.09088946]
[1736597887103,2.6694,187.39,187.35,2.6699]
[1736597888005,7.09088946,187.41,187.33,7.09088946]
[1736597888309,7.09088946,187.41,187.35,7.09088946]
[1736597888505,7.09088946,187.43,187.35,7.09088946]
[1736597889312,2.6691,187.42,187.38,2.6695]
[1736597889510,2.6691,187.42,187.35,7.09088946]
[1736597890710,2.6691,187.42,187.37,2.6695]
[1736597893415,2.6691,187.42,187.38,2.6695]
[1736597896623,2.6687,187.44,187.4,2.6691]
[1736597898822,2.6686,187.45,187.39,7.09088946]
[1736597899419,2.6687,187.44,187.41,2.669]
[1736597900317,9.75958946,187.44,187.41,2.669]
[1736597900518,2.6689,187.43,187.39,2.6693]
[1736597900719,7.09088946,187.42,187.35,7.09088946]
[1736597901218,9.75998946,187.42,187.37,2.6697]
[1736597901419,7.09088946,187.42,187.31,3.1822]
[1736597901620,9.76028946,187.4,187.35,2.6698]
[1736597902217,7.09088946,187.4,187.35,2.6698]
[1736597902420,7.09088946,187.38,187.33,2.6702]
[1736597903722,7.09088946,187.38,187.34,2.67]
[1736597905122,9.76048946,187.38,187.34,2.67]
[1736597905626,9.76048946,187.38,187.35,2.6699]
[1736597907227,7.09088946,187.38,187.31,8.65488946]
[1736597907415,2.6697,187.37,187.33,2.6701]
[1736597907920,2.6697,187.37,187.31,8.65488946]
[1736597908826,2.6697,187.37,187.33,2.6701]
[1736597910323,2.6697,187.37,187.34,2.6701]
[1736597911328,2.6697,187.37,187.31,8.65488946]
[1736597911527,2.6697,187.37,187.33,2.6702]
[1736597911724,2.6698,187.36,187.3,1.6624]
[1736597911929,7.09088946,187.34,187.29,2.6708]
[1736597912128,7.09088946,187.34,187.27,7.09088946]
[1736597912328,2.6698,187.37,187.27,7.09088946]
[1736597912529,7.09088946,187.35,187.31,2.6705]
[1736597913325,9.76088946,187.35,187.31,2.6705]
[1736597914127,1.5585,187.4,187.26,3.186]
[1736597914425,7.09088946,187.33,187.25,7.09088946]
[1736597914632,7.09088946,187.31,187.25,7.09088946]
[1736597915035,9.76158946,187.31,187.27,2.671]
[1736597916726,7.09088946,187.31,187.25,7.09088946]
[1736597916922,7.09088946,187.31,187.28,2.6709]
[1736597919834,9.76138946,187.31,187.28,2.6709]
[1736597920033,7.09088946,187.31,187.26,2.6711]
[1736597920935,2.6708,187.3,187.26,2.6711]
[1736597921236,2.6708,187.3,187.27,2.6711]
[1736597924031,9.76138946,187.32,187.28,2.6709]
[1736597925335,2.6705,187.31,187.28,2.6709]
[1736597926234,7.09088946,187.32,187.28,2.6709]
[1736597926434,9.76128946,187.32,187.28,2.6709]
[1736597927440,2.6708,187.29,187.25,2.6713]
[1736597927641,7.09088946,187.28,187.22,4.56157938]
[1736597927933,5.46,187.37,187.22,4.56157938]
[1736597927934,7.09088946,187.26,187.22,4.56157938]
[1736597928443,9.76218946,187.26,187.22,7.23327938]
[1736597931441,7.09088946,187.26,187.19,7.09088946]
[1736597931642,7.09088946,187.24,187.17,8.72068946]
[1736597932141,9.76258946,187.24,187.19,2.6721]
[1736597932335,9.76258946,187.24,187.17,8.72068946]
[1736597933141,9.76258946,187.24,187.2,2.6721]
[1736597938145,2.6718,187.23,187.19,2.6722]
[1736597940537,7.09088946,187.22,187.13,1.5316]
[1736597940741,7.09088946,187.2,187.13,8.62248946]
[1736597940936,7.09088946,187.2,187.1,3.2051]
[1736597941136,2.6723,187.19,187.15,2.6727]
[1736597941944,7.09088946,187.2,187.14,7.09088946]
[1736597942942,7.09088946,187.22,187.16,7.09088946]
[1736597943139,7.09088946,187.24,187.16,7.09088946]
[1736597943945,2.6718,187.23,187.19,2.6721]
[1736597945342,2.6718,187.23,187.2,2.6721]
[1736597946545,1.5411,187.27,187.18,7.09088946]
[1736597946846,7.09088946,187.25,187.18,7.09088946]
[1736597947343,7.09088946,187.25,187.22,2.6718]
[1736597954245,9.76228946,187.25,187.22,2.6718]
[1736597954655,7.09088946,187.25,187.17,1.676]
[1736597954948,9.76268946,187.23,187.19,2.6722]
[1736597956449,9.76268946,187.23,187.2,2.6721]
[1736597957552,9.76268946,187.23,187.17,1.676]
[1736597957747,7.09088946,187.21,187.14,7.09088946]
[1736597957947,7.09088946,187.23,187.16,7.09088946]
[1736597958150,7.09088946,187.23,187.2,2.672]
[1736597958344,7.09088946,187.23,187.18,7.09088946]
[1736597958653,7.09088946,187.27,187.2,7.09088946]
[1736597958952,7.09088946,187.29,187.22,7.09088946]
[1736597959458,7.09088946,187.29,187.26,2.6712]
[1736597962046,1.5281,187.33,187.22,7.09088946]
[1736597962252,7.09088946,187.31,187.24,7.09088946]
[1736597962953,7.09088946,187.31,187.28,2.6709]
[1736597965050,3.0895,187.35,187.24,7.09088946]
[1736597965051,1.5253,187.35,187.24,7.09088946]
[1736597965259,7.09088946,187.31,187.29,2.6707]
[1736597965654,7.09088946,187.31,187.24,7.09088946]
[1736597966255,9.76108946,187.33,187.26,7.09088946]
[1736597967061,9.76108946,187.33,187.28,2.6709]
[1736597967357,9.76108946,187.33,187.26,7.09088946]
[1736597967557,9.76108946,187.33,187.29,2.6707]
[1736597968154,5.44,187.38,187.26,7.09088946]
[1736597968353,7.09088946,187.34,187.31,2.6704]
[1736597969857,9.76098946,187.34,187.31,2.6704]
[1736597970859,9.76098946,187.34,187.3,2.6706]
[1736597971059,9.76138946,187.32,187.27,3.1462]
[1736597972061,9.76138946,187.32,187.28,2.6708]
[1736597973655,7.09088946,187.32,187.29,2.6708]
[1736597975463,9.76128946,187.32,187.28,2.6709]
[1736597975860,6.04484995,187.41,187.27,3.1462]
[1736597976066,7.09088946,187.34,187.31,2.6704]
[1736597979873,7.09088946,187.36,187.29,7.09088946]
[1736597980374,9.76068946,187.36,187.32,2.6703]
[1736597980774,7.09088946,187.36,187.29,7.09088946]
[1736597981170,1.5809,187.4,187.29,7.09088946]
[1736597981581,7.09088946,187.37,187.31,7.09088946]
[1736597981879,7.09088946,187.4,187.27,3.1462]
[1736597982073,7.09088946,187.4,187.33,7.09088946]
[1736597982268,9.76018946,187.4,187.36,2.6698]
[1736597982471,9.76018946,187.4,187.27,3.1462]
[1736597982472,7.09088946,187.4,187.27,3.1462]
[1736597982679,7.09088946,187.36,187.3,7.09088946]
[1736597982976,2.67,187.35,187.28,7.09088946]
[1736597983177,7.09088946,187.36,187.28,7.09088946]
[1736597983380,2.6701,187.34,187.31,2.6705]
[1736597983776,7.09088946,187.36,187.31,2.6705]
[1736597984080,7.09088946,187.37,187.3,7.09088946]
[1736597986183,7.09088946,187.35,187.28,7.09088946]
[1736597986482,7.09088946,187.35,187.31,2.6705]
[1736597986683,9.76088946,187.35,187.31,2.6705]
[1736597987183,9.76088946,187.35,187.27,10.23708946]
[1736597987482,7.09088946,187.35,187.32,2.6704]
[1736597987681,7.09088946,187.35,187.29,7.09088946]
[1736597988683,7.09088946,187.35,187.3,2.6706]
[1736597988981,7.09088946,187.35,187.29,7.09088946]
[1736597989578,7.09088946,187.35,187.32,2.6703]
[1736597989974,7.09088946,187.35,187.29,7.09088946]
[1736597990174,7.09088946,187.36,187.33,2.6702]
[1736597994386,9.76068946,187.36,187.31,2.6705]
[1736597994589,9.76068946,187.36,187.29,7.09088946]
[1736597996083,9.76068946,187.36,187.32,2.6703]
[1736597996585,7.09088946,187.38,187.35,2.67]
[1736597997293,9.76038946,187.38,187.35,2.67]
[1736597999297,7.09088946,187.38,187.31,7.09088946]
[1736597999597,7.09088946,187.38,187.36,2.6698]
[1736597999794,7.09088946,187.38,187.31,7.09088946]
[1736598000292,8.73438946,187.41,187.33,7.09088946]
[1736598000491,7.09088946,187.41,187.33,7.09088946]
[1736598000702,9.75998946,187.41,187.37,2.6696]
[1736598000993,7.09088946,187.41,187.37,2.6696]
[1736598001391,7.09088946,187.39,187.37,2.6696]
[1736598002486,1.6248,187.42,187.34,7.09088946]
[1736598002694,7.09088946,187.43,187.4,2.6692]
[1736598003500,7.09088946,187.43,187.41,2.669]
[1736598003703,1.5568,187.48,187.38,7.09088946]
[1736598004005,7.09088946,187.46,187.4,7.09088946]
[1736598004194,7.09088946,187.46,187.44,2.6685]
[1736598004893,7.09088946,187.46,187.43,2.6688]
[1736598005092,4.225,187.48,187.43,2.6688]
[1736598005296,7.09088946,187.46,187.43,2.6688]
[1736598008095,7.09088946,187.46,187.44,2.6686]
[1736598008700,11.31588946,187.48,187.44,2.6686]
[1736598009895,8.64768946,187.48,187.44,2.6686]
[1736598012098,8.64768946,187.48,187.4,7.09088946]
[1736598012299,2.6679,187.5,187.46,2.6683]
[1736598012601,9.75878946,187.5,187.46,2.6683]
[1736598014001,2.668,187.49,187.46,2.6683]
[1736598014495,7.09088946,187.48,187.36,3.2062]
[1736598014701,2.6683,187.47,187.41,7.09088946]
[1736598015396,2.6683,187.47,187.43,2.6687]
[1736598015903,7.09088946,187.48,187.41,7.09088946]
[1736598015904,9.75898946,187.48,187.44,2.6687]
[1736598018607,2.6682,187.47,187.44,2.6687]
[1736598020408,2.6685,187.45,187.39,7.09088946]
[1736598021306,2.6685,187.45,187.41,2.669]
[1736598021507,7.09088946,187.46,187.41,2.669]
[1736598021708,9.75968946,187.44,187.37,7.09088946]
[1736598021909,7.09088946,187.44,187.37,7.09088946]
[1736598022411,2.669,187.42,187.38,2.6694]
[1736598024010,7.09088946,187.44,187.37,7.09088946]
[1736598024313,2.6689,187.43,187.39,2.6694]
[1736598024813,7.09088946,187.44,187.37,7.09088946]
[1736598025014,2.669,187.42,187.38,2.6695]
[1736598025216,7.09088946,187.44,187.37,7.09088946]
[1736598026115,2.6688,187.43,187.39,2.6693]
[1736598026314,7.09088946,187.44,187.37,7.09088946]
[1736598026916,7.09088946,187.44,187.38,2.6694]
[1736598026917,2.669,187.42,187.38,2.6694]
[1736598027215,9.75988946,187.42,187.38,2.6694]
[1736598029919,11.44867521,187.53,187.36,10.29708946]
[1736598030113,7.09088946,187.44,187.36,10.29708946]
[1736598031217,7.09088946,187.44,187.4,2.6691]
[1736598031717,2.6689,187.43,187.39,2.6694]
[1736598032414,9.75988946,187.42,187.38,2.6695]
[1736598036324,9.75988946,187.42,187.36,7.09088946]
[1736598036622,9.75988946,187.42,187.39,2.6694]
[1736598036824,7.09088946,187.44,187.36,7.09088946]
[1736598037021,9.75968946,187.44,187.4,2.6692]
[1736598037418,2.6689,187.43,187.36,7.09088946]
[1736598037618,2.6689,187.43,187.39,2.6694]
[1736598038420,1.5173,187.47,187.36,7.09088946]
[1736598038622,7.09088946,187.45,187.38,7.09088946]
[1736598038818,7.09088946,187.45,187.4,2.6692]
[1736598039023,7.09088946,187.45,187.38,7.09088946]
[1736598040126,7.09088946,187.45,187.42,2.6688]
[1736598040325,7.09088946,187.45,187.38,7.09088946]
[1736598041124,9.75938946,187.45,187.42,2.6689]
[1736598041325,7.09088946,187.45,187.42,2.6689]
[1736598043820,2.6684,187.46,187.43,2.6687]
[1736598046821,7.09088946,187.47,187.39,7.09088946]
[1736598047028,7.09088946,187.47,187.45,2.6685]
[1736598048422,2.6681,187.48,187.45,2.6685]
[1736598048628,9.75898946,187.48,187.45,2.6685]
[1736598048824,2.6683,187.47,187.44,2.6687]
[1736598049129,7.09088946,187.48,187.41,7.09088946]
[1736598050129,2.6684,187.46,187.43,2.6688]
[1736598050331,9.75928946,187.46,187.43,2.6688]
[1736598057330,7.09088946,187.44,187.4,2.6692]
[1736598058230,9.75958946,187.44,187.4,2.6692]
[1736598063143,2.6688,187.43,187.4,2.6692]
[1736598065244,2.6688,187.43,187.39,2.6693]
[1736598065441,2.6688,187.43,187.37,7.09088946]
[1736598066546,1.6346,187.52,187.39,7.09088946]
[1736598066739,7.09088946,187.49,187.41,7.09088946]
[1736598066940,7.09088946,187.49,187.46,2.6683]
[1736598067140,1.6346,187.52,187.46,2.6683]
[1736598067141,2.6679,187.5,187.46,2.6683]
[1736598067743,9.75858946,187.51,187.47,2.6682]
[1736598070245,7.09088946,187.51,187.43,7.09088946]
[1736598070546,7.09088946,187.51,187.38,1.6135]
[1736598070845,7.09088946,187.51,187.44,2.6686]
[1736598071242,7.09088946,187.51,187.43,7.09088946]
[1736598071448,2.668,187.49,187.45,2.6685]
[1736598071849,7.09088946,187.49,187.43,7.09088946]
[1736598072145,7.09088946,187.47,187.41,7.09088946]
[1736598072653,2.6684,187.46,187.42,2.6688]
[1736598072845,7.09088946,187.47,187.41,7.09088946]
[1736598073043,2.6685,187.45,187.41,2.6691]
[1736598074548,7.09088946,187.47,187.41,2.6691]
[1736598074750,2.6684,187.46,187.41,2.6691]
[1736598074950,2.6684,187.46,187.42,2.6689]
[1736598080753,7.09088946,187.43,187.35,5.4]
[1736598080950,7.09088946,187.41,187.35,7.09088946]
[1736598081350,7.09088946,187.41,187.37,2.6696]
[1736598082354,7.09088946,187.41,187.32,50.91201118]
[1736598082559,7.09088946,187.39,187.32,10.29558946]
[1736598082751,7.09088946,187.39,187.32,7.09088946]
[1736598084060,7.09088946,187.37,187.29,7.09088946]
[1736598084261,7.09088946,187.35,187.29,7.09088946]
[1736598084453,9.76118946,187.33,187.28,2.6709]
[1736598084657,7.09088946,187.33,187.28,2.6709]
[1736598085160,2.6704,187.32,187.27,2.6711]
[1736598086060,9.76128946,187.33,187.26,7.09088946]
[1736598087060,9.76128946,187.33,187.28,2.6709]
[1736598087660,2.6704,187.33,187.26,7.09088946]
[1736598087861,9.76128946,187.33,187.29,2.6708]
[1736598088161,2.6705,187.32,187.26,7.09088946]
[1736598088365,2.6705,187.32,187.28,2.6709]
[1736598088567,7.09088946,187.33,187.28,2.6709]
[1736598088765,2.6698,187.36,187.32,2.6704]
[1736598089067,8.68598946,187.38,187.3,7.09088946]
[1736598089664,7.09088946,187.36,187.3,7.09088946]
[1736598090261,7.09088946,187.36,187.28,7.09088946]
[1736598090460,7.09088946,187.34,187.28,7.09088946]
[1736598090664,2.6702,187.33,187.26,7.09088946]
[1736598091162,7.09088946,187.34,187.26,7.09088946]
[1736598091767,9.76108946,187.34,187.29,2.6707]
[1736598092162,9.76108946,187.34,187.28,7.09088946]
[1736598093168,2.6705,187.32,187.26,7.09088946]
[1736598093571,9.76138946,187.32,187.26,7.09088946]
[1736598094069,9.76138946,187.32,187.28,2.6709]
[1736598096268,7.09088946,187.32,187.28,2.6708]
[1736598096965,7.09088946,187.32,187.26,7.09088946]
[1736598097170,7.09088946,187.32,187.29,2.6708]
[1736598098069,7.09088946,187.32,187.26,7.09088946]
[1736598098269,9.76128946,187.32,187.28,2.6708]
[1736598099569,9.76128946,187.32,187.29,2.6708]
[1736598102071,7.09088946,187.32,187.26,7.09088946]
[1736598102268,2.6705,187.31,187.28,2.6709]
[1736598102871,7.09088946,187.32,187.28,2.6709]
[1736598103169,9.76128946,187.32,187.28,2.6709]
[1736598103471,9.76128946,187.32,187.29,2.6708]
[1736598104073,2.6705,187.31,187.28,2.6709]
[1736598104472,7.09088946,187.32,187.28,2.6709]
[1736598104665,7.09088946,187.32,187.26,7.09088946]
[1736598104871,9.76128946,187.32,187.29,2.6707]
[1736598105375,9.76128946,187.32,187.29,2.6708]
[1736598106269,9.76128946,187.32,187.28,2.6709]
[1736598106463,9.76128946,187.32,187.26,7.09088946]
[1736598107076,9.76128946,187.32,187.28,2.6708]
[1736598107276,9.76128946,187.32,187.26,7.09088946]
[1736598107776,9.76128946,187.32,187.27,2.671]
[1736598107967,9.76128946,187.32,187.26,7.09088946]
[1736598109075,9.76128946,187.32,187.28,2.6708]
[1736598109971,9.76128946,187.32,187.27,2.671]
[1736598110172,9.76128946,187.32,187.26,7.09088946]
[1736598110372,7.09088946,187.32,187.26,7.09088946]
[1736598110880,2.6699,187.36,187.28,7.09088946]
[1736598111078,7.09088946,187.35,187.28,7.09088946]
[1736598111477,2.6701,187.34,187.3,2.6707]
[1736598111671,7.09088946,187.33,187.26,7.09088946]
[1736598111873,7.09088946,187.31,187.24,7.09088946]
[1736598112374,2.6708,187.3,187.26,2.6712]
[1736598114576,9.76148946,187.31,187.27,2.671]
[1736598115780,2.6707,187.3,187.27,2.671]
[1736598116083,7.09088946,187.29,187.2,2.6721]
[1736598116379,7.09088946,187.23,187.18,50.09352617]
[1736598116973,9.76268946,187.23,187.18,50.09352617]
[1736598117279,7.09088946,187.21,187.18,50.09352617]
[1736598117481,7.09088946,187.21,187.17,58.4810961]
[1736598117482,7.09088946,187.21,187.16,2.6726]
[1736598117976,7.09088946,187.21,187.14,7.31013701]
[1736598118174,7.09088946,187.21,187.15,2.6728]